fUST/lending_fUST_20240721
["ID","MTS","AMOUNT","RATE_DAILY","PERIOD"]
[332756237,1721505047079,-500.0,0.00013698,2]
[332756238,1721505047087,-500.0,0.00013698,2]
[332756239,1721505047097,-961.48,0.00013698,2]
[332756240,1721505047107,-842.86,0.00013698,2]
[332756241,1721505047115,-500.0,0.00013698,2]
[332756242,1721505047124,-500.0,0.00013698,2]
[332756243,1721505047134,-500.0,0.00013698,2]
[332756244,1721505047143,-513.33275701,0.00013698,2]
[332756245,1721505047153,-681.48,0.00013698,2]
[332756246,1721505047162,-500.0,0.00013698,2]
[332756247,1721505047172,-500.0,0.00013698,2]
[332756248,1721505047181,-2628.42,0.00013698,2]
[332756249,1721505047190,-500.0,0.00013698,2]
[332756250,1721505047200,-500.0,0.00013698,2]
[332756251,1721505047209,-500.0,0.00013698,2]
[332756252,1721505047218,-500.0,0.00013698,2]
[332756253,1721505047227,-3000.0,0.00013699,2]
[332756254,1721505047236,-1374.674225,0.00013699,2]
[332756255,1721505047246,-613.0113624,0.00013699,2]
[332756256,1721505047255,-153.9016,0.00013809,2]
[332756257,1721505047264,-500.0,0.00013972,2]
[332756258,1721505047272,-351.71501332,0.00013972,2]
[332756259,1721505047282,-500.0,0.00013972,2]
[332756260,1721505047291,-500.0,0.00013972,2]
[332756261,1721505047300,-500.0,0.00013972,2]
[332756262,1721505047309,-500.0,0.00013972,2]
[332756263,1721505047318,-2199.34,0.00013972,2]
[332756264,1721505047327,-500.0,0.00013972,2]
[332756265,1721505047336,-500.0,0.00013972,2]
[332756266,1721505047346,-500.0,0.00013972,2]
[332756267,1721505047355,-521.24,0.00013972,2]
[332756268,1721505047364,-642.9,0.00013972,2]
[332756269,1721505047374,-713.56,0.00013972,2]
[332756270,1721505047383,-500.0,0.00013972,2]
[332756271,1721505047392,-500.0,0.00013972,2]
[332756272,1721505047405,-539.82,0.00013972,2]
[332756273,1721505047414,-170.43129503,0.00013972,2]
[332756274,1721505047424,-654.24,0.00013972,2]
[332756275,1721505047433,-500.0,0.00013972,2]
[332756276,1721505047442,-500.0,0.00013972,2]
[332756277,1721505047451,-500.0,0.00013972,2]
[332756278,1721505047461,-500.0,0.00013972,2]
[332756279,1721505047471,-726.63,0.00013972,2]
[332756280,1721505047480,-500.0,0.00013972,2]
[332756281,1721505047489,-2312.49,0.00013972,2]
[332756282,1721505047499,-500.0,0.00013972,2]
[332756283,1721505047508,-507.77956758,0.00013972,2]
[332756284,1721505047517,-500.0,0.00013972,2]
[332756285,1721505047527,-500.0,0.00013972,2]
[332756286,1721505047536,-500.0,0.00013972,2]
[332756287,1721505047549,-500.0,0.00013972,2]
[332756288,1721505047559,-500.0,0.00013972,2]
[332756289,1721505047568,-500.0,0.00013972,2]
[332756290,1721505047578,-500.0,0.00013972,2]
[332756291,1721505047588,-1416.79,0.00013972,2]
[332756292,1721505047597,-553.59452076,0.00013972,2]
[332756293,1721505047606,-500.0,0.00013972,2]
[332756294,1721505047615,-500.0,0.00013972,2]
[332756295,1721505047625,-500.0,0.00013972,2]
[332756296,1721505047635,-500.0,0.00013972,2]
[332756297,1721505047644,-1189.46,0.00013972,2]
[332756298,1721505047656,-500.0,0.00013972,2]
[332756299,1721505047666,-500.0,0.00013972,2]
[332756300,1721505047675,-912.35,0.00013972,2]
[332756301,1721505047684,-500.0,0.00013972,2]
[332756302,1721505047694,-500.0,0.00013972,2]
[332756303,1721505047704,-502.09315046,0.00013972,2]
[332756304,1721505047714,-693.44,0.00013972,2]
[332756305,1721505047724,-500.0,0.00013972,2]
[332756306,1721505047733,-510.42578769,0.00013972,2]
[332756307,1721505047743,-617.69,0.00013972,2]
[332756308,1721505047752,-500.0,0.00013972,2]
[332756309,1721505047762,-500.0,0.00013972,2]
[332756310,1721505047772,-500.0,0.00013972,2]
[332756311,1721505047782,-254.88943529,0.00013972,2]
[332756312,1721505047792,-500.0,0.00013972,2]
[332756313,1721505047802,-500.0,0.00013972,2]
[332756314,1721505047811,-500.0,0.00013972,2]
[332756315,1721505047821,-500.0,0.00013972,2]
[332756316,1721505047830,-500.0,0.00013972,2]
[332756317,1721505047840,-500.0,0.00013972,2]
[332756318,1721505047849,-807.67,0.00013972,2]
[332756319,1721505047859,-500.0,0.00013972,2]
[332756320,1721505047868,-500.0,0.00013972,2]
[332756321,1721505047878,-500.0,0.00013972,2]
[332756322,1721505047888,-855.61,0.00013972,2]
[332756323,1721505047897,-500.0,0.00013972,2]
[332756324,1721505047913,-507.40824382,0.00013972,2]
[332756325,1721505047922,-500.0,0.00013972,2]
[332756326,1721505047932,-562.63316697,0.00013972,2]
[332756327,1721505047942,-500.0,0.00013972,2]
[332756328,1721505047954,-534.87,0.00013972,2]
[332756329,1721505047963,-641.37526896,0.00013972,2]
[332756330,1721505047974,-500.0,0.00013972,2]
[332756331,1721505047983,-500.0,0.00013972,2]
[332756332,1721505047993,-500.0,0.00013972,2]
[332756333,1721505048003,-1276.73,0.00013972,2]
[332756334,1721505048012,-600.4,0.00013972,2]
[332756335,1721505048022,-982.99,0.00013972,2]
[332756336,1721505048032,-601.67470916,0.00013972,2]
[332756337,1721505048041,-500.0,0.00013972,2]
[332756338,1721505048051,-500.0,0.00013972,2]
[332756339,1721505048060,-1040.73,0.00013972,2]
[332756340,1721505048070,-500.0,0.00013972,2]
[332756341,1721505048080,-500.0,0.00013972,2]
[332756342,1721505048089,-421.88467126,0.00013972,2]
[332756343,1721505048099,-537.08,0.00013972,2]
[332756344,1721505048110,-2665.52,0.00013972,2]
[332756345,1721505048119,-500.0,0.00013972,2]
[332756346,1721505048128,-500.0,0.00013972,2]
[332756347,1721505048138,-500.0,0.00013972,2]
[332756348,1721505048152,-500.0,0.00013972,2]
[332756349,1721505048162,-500.0,0.00013972,2]
[332756350,1721505048172,-502.76716104,0.00013972,2]
[332756351,1721505048181,-500.0,0.00013972,2]
[332756352,1721505048191,-500.0,0.00013972,2]
[332756353,1721505048200,-2305.69,0.00013972,2]
[332756354,1721505048210,-560.73301691,0.00013972,2]
[332756355,1721505048219,-500.0,0.00013972,2]
[332756356,1721505048229,-500.0,0.00013972,2]
[332756357,1721505048238,-500.0,0.00013972,2]
[332756358,1721505048247,-500.0,0.00013972,2]
[332756359,1721505048257,-500.0,0.00013972,2]
[332756360,1721505048267,-1328.62,0.00013972,2]
[332756361,1721505048276,-500.0,0.00013972,2]
[332756362,1721505048286,-500.0,0.00013972,2]
[332756363,1721505048296,-500.0,0.00013972,2]
[332756364,1721505048305,-500.0,0.00013972,2]
[332756365,1721505048315,-500.0,0.00013972,2]
[332756366,1721505048324,-500.0,0.00013972,2]
[332756367,1721505048334,-500.0,0.00013972,2]
[332756368,1721505048343,-500.0,0.00013972,2]
[332756369,1721505048353,-500.0,0.00013972,2]
[332756370,1721505048362,-500.0,0.00013972,2]
[332756371,1721505048372,-500.0,0.00013972,2]
[332756372,1721505048382,-500.0,0.00013972,2]
[332756373,1721505048391,-500.0,0.00013972,2]
[332756374,1721505048406,-500.0,0.00013972,2]
[332756375,1721505048417,-500.0,0.00013972,2]
[332756376,1721505048427,-500.0,0.00013972,2]
[332756377,1721505048436,-571.36,0.00013972,2]
[332756378,1721505048445,-506.27059481,0.00013972,2]
[332756379,1721505048455,-816.65,0.00013972,2]
[332756380,1721505048464,-518.24520718,0.00013972,2]
[332756381,1721505048474,-500.0,0.00013972,2]
[332756382,1721505048483,-500.0,0.00013972,2]
[332756383,1721505048493,-500.0,0.00013972,2]
[332756384,1721505048503,-515.13,0.00013972,2]
[332756385,1721505048512,-2488.95,0.00013972,2]
[332756386,1721505048521,-504.67,0.00013972,2]
[332756387,1721505048531,-500.0,0.00013972,2]
[332756388,1721505048541,-3244.74,0.00013972,2]
[332756389,1721505048551,-500.0,0.00013972,2]
[332756390,1721505048560,-500.0,0.00013972,2]
[332756391,1721505048571,-500.0,0.00013972,2]
[332756392,1721505048580,-855.39,0.00013972,2]
[332756393,1721505048590,-634.94,0.00013972,2]
[332756394,1721505048601,-500.0,0.00013972,2]
[332756395,1721505048611,-1659.11,0.00013972,2]
[332756396,1721505048621,-987.25,0.00013972,2]
[332756397,1721505048631,-772.19,0.00013972,2]
[332756398,1721505048641,-2092.55,0.00013972,2]
[332756399,1721505048652,-500.0,0.00013972,2]
[332756400,1721505048662,-889.11,0.00013972,2]
[332756401,1721505048672,-611.34,0.00013972,2]
[332756402,1721505048682,-2867.86,0.00013972,2]
[332756403,1721505048691,-503.24791271,0.00013972,2]
[332756404,1721505048701,-500.0,0.00013972,2]
[332756405,1721505048712,-500.0,0.00013972,2]
[332756406,1721505048724,-1080.3,0.00013972,2]
[332756407,1721505048734,-500.0,0.00013972,2]
[332756408,1721505048746,-500.0,0.00013972,2]
[332756409,1721505048757,-500.0,0.00013972,2]
[332756410,1721505048768,-500.0,0.00013972,2]
[332756411,1721505048780,-578.61,0.00013972,2]
[332756412,1721505048790,-509.41848931,0.00013972,2]
[332756413,1721505048800,-500.0,0.00013972,2]
[332756414,1721505048811,-500.0,0.00013972,2]
[332756415,1721505048825,-1142.56,0.00013972,2]
[332756416,1721505048836,-594.49,0.00013972,2]
[332756417,1721505048847,-500.0,0.00013972,2]
[332756418,1721505048858,-500.0,0.00013972,2]
[332756419,1721505048869,-4107.87,0.00013972,2]
[332756420,1721505048879,-558.88,0.00013972,2]
[332756421,1721505048890,-783.15,0.00013972,2]
[332756422,1721505048900,-547.96,0.00013972,2]
[332756423,1721505048912,-500.0,0.00013972,2]
[332756424,1721505048922,-1407.73,0.00013972,2]
[332756425,1721505048934,-536.17445901,0.00013972,2]
[332756426,1721505048944,-500.0,0.00013972,2]
[332756427,1721505048955,-583.33475046,0.00013972,2]
[332756428,1721505048966,-500.0,0.00013972,2]
[332756429,1721505048977,-659.5,0.00013972,2]
[332756430,1721505048988,-504.00214773,0.00013972,2]
[332756431,1721505048998,-688.02,0.00013972,2]
[332756432,1721505049008,-500.0,0.00013972,2]
[332756433,1721505049019,-1930.7,0.00013972,2]
[332756434,1721505049029,-500.0,0.00013972,2]
[332756435,1721505049039,-500.0,0.00013972,2]
[332756436,1721505049050,-507.45038816,0.00013972,2]
[332756437,1721505049060,-500.0,0.00013972,2]
[332756438,1721505049070,-500.0,0.00013972,2]
[332756439,1721505049080,-500.0,0.00013972,2]
[332756440,1721505049091,-500.0,0.00013972,2]
[332756441,1721505049101,-612.0,0.00013972,2]
[332756442,1721505049112,-1006.7,0.00013972,2]
[332756443,1721505049122,-583.96,0.00013972,2]
[332756444,1721505049132,-500.0,0.00013972,2]
[332756445,1721505049143,-560.63,0.00013972,2]
[332756446,1721505049154,-500.0,0.00013972,2]
[332756447,1721505049164,-500.0,0.00013972,2]
[332756448,1721505049176,-535.04,0.00013972,2]
[332756449,1721505049187,-500.0,0.00013972,2]
[332756450,1721505049197,-897.56,0.00013972,2]
[332756451,1721505049208,-500.0,0.00013972,2]
[332756452,1721505049218,-1282.95,0.00013972,2]
[332756453,1721505049228,-500.0,0.00013972,2]
[332756454,1721505049239,-500.0,0.00013972,2]
[332756455,1721505049248,-500.0,0.00013972,2]
[332756456,1721505049259,-1811.52,0.00013972,2]
[332756457,1721505049270,-500.0,0.00013972,2]
[332756458,1721505049279,-825.74,0.00013972,2]
[332756459,1721505049289,-500.0,0.00013972,2]
[332756460,1721505049299,-1351.75,0.00013972,2]
[332756461,1721505049309,-500.0,0.00013972,2]
[332756462,1721505049320,-500.0,0.00013972,2]
[332756463,1721505049329,-511.32174449,0.00013972,2]
[332756464,1721505049339,-732.38,0.00013972,2]
[332756465,1721505049349,-2620.27,0.00013972,2]
[332756466,1721505049359,-546.65,0.00013972,2]
[332756467,1721505049370,-779.56,0.00013972,2]
[332756468,1721505049380,-1804.4,0.00013972,2]
[332756469,1721505049391,-500.0,0.00013972,2]
[332756470,1721505049405,-611.66,0.00013972,2]
[332756471,1721505049415,-1766.9,0.00013972,2]
[332756472,1721505049427,-500.0,0.00013972,2]
[332756473,1721505049437,-500.0,0.00013972,2]
[332756474,1721505049447,-500.0,0.00013972,2]
[332756475,1721505049458,-500.0,0.00013972,2]
[332756476,1721505049468,-2146.19,0.00013972,2]
[332756477,1721505049479,-500.0,0.00013972,2]
[332756478,1721505049490,-501.43123297,0.00013972,2]
[332756479,1721505049502,-500.0,0.00013972,2]
[332756480,1721505049514,-500.0,0.00013972,2]
[332756481,1721505049524,-502.54970071,0.00013972,2]
[332756482,1721505049534,-1717.99,0.00013972,2]
[332756483,1721505049545,-500.0,0.00013972,2]
[332756484,1721505049556,-2168.23,0.00013972,2]
[332756485,1721505049566,-177.09484028,0.00013972,2]
[332756486,1721505049576,-2063.58,0.00013972,2]
[332756487,1721505049587,-500.0,0.00013972,2]
[332756488,1721505049597,-1393.65,0.00013972,2]
[332756489,1721505049607,-500.0,0.00013972,2]
[332756490,1721505049618,-908.99,0.00013972,2]
[332756491,1721505049628,-500.0,0.00013972,2]
[332756492,1721505049638,-500.0,0.00013972,2]
[332756493,1721505049650,-541.46,0.00013972,2]
[332756494,1721505049661,-982.46,0.00013972,2]
[332756495,1721505049671,-500.0,0.00013972,2]
[332756496,1721505049681,-500.0,0.00013972,2]
[332756497,1721505049691,-500.0,0.00013972,2]
[332756498,1721505049701,-500.0,0.00013972,2]
[332756499,1721505049711,-721.38,0.00013972,2]
[332756500,1721505049721,-500.0,0.00013972,2]
[332756501,1721505049731,-500.0,0.00013972,2]
[332756502,1721505049740,-500.0,0.00013972,2]
[332756503,1721505049750,-521.45625736,0.00013972,2]
[332756504,1721505049760,-1494.97,0.00013972,2]
[332756505,1721505049769,-526.48973884,0.00013972,2]
[332756506,1721505049779,-500.0,0.00013972,2]
[332756507,1721505049789,-500.0,0.00013972,2]
[332756508,1721505049810,-500.0,0.00013972,2]
[332756509,1721505049820,-1367.5,0.00013972,2]
[332756510,1721505049830,-500.0,0.00013972,2]
[332756511,1721505049840,-500.0,0.00013972,2]
[332756512,1721505049850,-763.32,0.00013972,2]
[332756513,1721505049860,-551.34285931,0.00013972,2]
[332756514,1721505049870,-500.0,0.00013972,2]
[332756515,1721505049880,-921.43,0.00013972,2]
[332756516,1721505049890,-1791.92,0.00013972,2]
[332756517,1721505049903,-500.0,0.00013972,2]
[332756518,1721505049913,-980.39,0.00013972,2]
[332756519,1721505049923,-500.0,0.00013972,2]
[332756520,1721505049933,-500.0,0.00013972,2]
[332756521,1721505049943,-724.24,0.00013972,2]
[332756522,1721505049952,-500.0,0.00013972,2]
[332756523,1721505049962,-533.02,0.00013972,2]
[332756524,1721505049972,-1003.63,0.00013972,2]
[332756525,1721505049981,-1566.01,0.00013972,2]
[332756526,1721505049991,-335.80325809,0.00013972,2]
[332756527,1721505050001,-500.0,0.00013972,2]
[332756528,1721505050011,-699.32,0.00013972,2]
[332756529,1721505050022,-500.0,0.00013972,2]
[332756530,1721505050031,-500.0,0.00013972,2]
[332756531,1721505050041,-912.49,0.00013972,2]
[332756532,1721505050051,-856.09,0.00013972,2]
[332756533,1721505050060,-500.0,0.00013972,2]
[332756534,1721505050071,-2074.95,0.00013972,2]
[332756535,1721505050082,-2248.5,0.00013972,2]
[332756536,1721505050092,-500.0,0.00013972,2]
[332756537,1721505050102,-586.14,0.00013972,2]
[332756538,1721505050112,-500.0,0.00013972,2]
[332756539,1721505050121,-500.0,0.00013972,2]
[332756540,1721505050131,-763.71,0.00013972,2]
[332756541,1721505050141,-1193.56,0.00013972,2]
[332756542,1721505050152,-3088.33,0.00013972,2]
[332756543,1721505050162,-500.0,0.00013972,2]
[332756544,1721505050171,-500.0,0.00013972,2]
[332756545,1721505050181,-500.0,0.00013972,2]
[332756546,1721505050191,-500.0,0.00013972,2]
[332756547,1721505050201,-9974.88,0.00013972,2]
[332756548,1721505050211,-500.0,0.00013972,2]
[332756549,1721505050221,-1001.96,0.00013972,2]
[332756550,1721505050230,-500.0,0.00013972,2]
[332756551,1721505050240,-762.0,0.00013972,2]
[332756552,1721505050250,-571.49,0.00013972,2]
[332756553,1721505050260,-1334.16,0.00013972,2]
[332756554,1721505050269,-682.11,0.00013972,2]
[332756555,1721505050279,-1088.36,0.00013972,2]
[332756556,1721505050290,-500.76394624,0.00013972,2]
[332756557,1721505050301,-511.37040743,0.00013972,2]
[332756558,1721505050310,-769.49,0.00013972,2]
[332756559,1721505050320,-500.0,0.00013972,2]
[332756560,1721505050330,-500.0,0.00013972,2]
[332756561,1721505050340,-9972.16,0.00013972,2]
[332756562,1721505050349,-511.02301535,0.00013972,2]
[332756563,1721505050359,-4842.68,0.00013972,2]
[332756564,1721505050369,-500.0,0.00013972,2]
[332756565,1721505050379,-500.0,0.00013972,2]
[332756566,1721505050388,-500.0,0.00013972,2]
[332756567,1721505050402,-812.17,0.00013972,2]
[332756568,1721505050414,-653.11,0.00013972,2]
[332756569,1721505050424,-3611.41,0.00013972,2]
[332756570,1721505050434,-500.0,0.00013972,2]
[332756571,1721505050445,-500.0,0.00013972,2]
[332756572,1721505050455,-510.07389428,0.00013972,2]
[332756573,1721505050465,-649.13,0.00013972,2]
[332756574,1721505050474,-500.0,0.00013972,2]
[332756575,1721505050485,-500.0,0.00013972,2]
[332756576,1721505050495,-919.91,0.00013972,2]
[332756577,1721505050506,-1534.22,0.00013972,2]
[332756578,1721505050516,-500.0,0.00013972,2]
[332756579,1721505050526,-500.0,0.00013972,2]
[332756580,1721505050536,-500.0,0.00013972,2]
[332756581,1721505050546,-291.97498847,0.00013972,2]
[332756582,1721505050556,-647.58,0.00013972,2]
[332756583,1721505050565,-848.62,0.00013972,2]
[332756584,1721505050575,-313.35768215,0.00013972,2]
[332756585,1721505050584,-500.0,0.00013972,2]
[332756586,1721505050594,-1118.49,0.00013972,2]
[332756587,1721505050603,-500.0,0.00013972,2]
[332756588,1721505050613,-2182.76,0.00013972,2]
[332756589,1721505050624,-3568.54,0.00013972,2]
[332756590,1721505050634,-922.66,0.00013972,2]
[332756591,1721505050643,-1292.27,0.00013972,2]
[332756592,1721505050657,-500.0,0.00013972,2]
[332756593,1721505050667,-500.0,0.00013972,2]
[332756594,1721505050677,-500.0,0.00013972,2]
[332756595,1721505050687,-219.41559619,0.00013972,2]
[332756596,1721505050697,-500.0,0.00013972,2]
[332756597,1721505050707,-601.56,0.00013972,2]
[332756598,1721505050717,-1615.36,0.00013972,2]
[332756599,1721505050728,-2356.17,0.00013972,2]
[332756600,1721505050738,-9525.09,0.00013972,2]
[332756601,1721505050748,-500.0,0.00013972,2]
[332756602,1721505050758,-503.55316172,0.00013972,2]
[332756603,1721505050769,-500.0,0.00013972,2]
[332756604,1721505050780,-539.75121852,0.00013972,2]
[332756605,1721505050789,-596.66,0.00013972,2]
[332756606,1721505050800,-500.0,0.00013972,2]
[332756607,1721505050811,-1164.01,0.00013972,2]
[332756608,1721505050820,-5614.66,0.00013972,2]
[332756609,1721505050830,-1336.36,0.00013972,2]
[332756610,1721505050840,-500.0,0.00013972,2]
[332756611,1721505050850,-500.0,0.00013972,2]
[332756612,1721505050860,-500.0,0.00013972,2]
[332756613,1721505050870,-500.0,0.00013972,2]
[332756614,1721505050879,-500.0,0.00013972,2]
[332756615,1721505051058,-2230.68,0.00013972,2]
[332756616,1721505051093,-2974.58,0.00013972,2]
[332756617,1721505051103,-5451.22,0.00013972,2]
[332756618,1721505051113,-500.0,0.00013972,2]
[332756619,1721505051123,-500.0,0.00013972,2]
[332756620,1721505051131,-500.0,0.00013972,2]
[332756621,1721505051141,-500.0,0.00013972,2]
[332756622,1721505051153,-505.99,0.00013972,2]
[332756623,1721505051163,-660.13,0.00013972,2]
[332756624,1721505051173,-500.0,0.00013972,2]
[332756625,1721505051183,-500.0,0.00013972,2]
[332756626,1721505051192,-500.0,0.00013972,2]
[332756627,1721505051201,-2479.41,0.00013972,2]
[332756628,1721505051211,-500.0,0.00013972,2]
[332756629,1721505051220,-650.96,0.00013972,2]
[332756630,1721505051229,-3826.08,0.00013972,2]
[332756631,1721505051239,-7347.6,0.00013972,2]
[332756632,1721505051248,-4593.9,0.00013972,2]
[332756633,1721505051257,-500.0,0.00013972,2]
[332756634,1721505051266,-500.0,0.00013972,2]
[332756635,1721505051275,-281.9230277,0.00013972,2]
[332756636,1721505051285,-500.0,0.00013972,2]
[332756637,1721505051295,-2007.77,0.00013972,2]
[332756638,1721505051304,-500.0,0.00013972,2]
[332756639,1721505051315,-500.0,0.00013972,2]
[332756640,1721505051324,-500.0,0.00013972,2]
[332756641,1721505051333,-500.0,0.00013972,2]
[332756642,1721505051343,-504.38,0.00013972,2]
[332756643,1721505051352,-500.0,0.00013972,2]
[332756644,1721505051361,-659.36,0.00013972,2]
[332756645,1721505051371,-500.0,0.00013972,2]
[332756646,1721505051380,-500.0,0.00013972,2]
[332756647,1721505051389,-500.0,0.00013972,2]
[332756648,1721505051399,-500.0,0.00013972,2]
[332756649,1721505051412,-1536.2,0.00013972,2]
[332756650,1721505051421,-520.92944104,0.00013972,2]
[332756651,1721505051430,-500.0,0.00013972,2]
[332756652,1721505051439,-694.69,0.00013972,2]
[332756653,1721505051448,-585.32,0.00013972,2]
[332756654,1721505051458,-500.0,0.00013972,2]
[332756655,1721505051466,-150.0,0.00013972,2]
[332756656,1721505051476,-4967.36,0.00013972,2]
[332756657,1721505051485,-500.0,0.00013972,2]
[332756658,1721505051494,-11096.32,0.00013972,2]
[332756659,1721505051504,-471.64085717,0.00013972,2]
[332756660,1721505051514,-1077.09,0.00013972,2]
[332756661,1721505051523,-500.0,0.00013972,2]
[332756662,1721505051532,-1034.45,0.00013972,2]
[332756663,1721505051542,-774.12,0.00013972,2]
[332756664,1721505051552,-500.0,0.00013972,2]
[332756665,1721505051561,-500.0,0.00013972,2]
[332756666,1721505051571,-500.0,0.00013972,2]
[332756667,1721505051580,-2632.34,0.00013972,2]
[332756668,1721505051591,-500.0,0.00013972,2]
[332756669,1721505051603,-972.5,0.00013972,2]
[332756670,1721505051614,-500.0,0.00013972,2]
[332756671,1721505051623,-500.0,0.00013972,2]
[332756672,1721505051634,-500.0,0.00013972,2]
[332756673,1721505051643,-500.0,0.00013972,2]
[332756674,1721505051656,-500.0,0.00013972,2]
[332756675,1721505051665,-573.91,0.00013972,2]
[332756676,1721505051674,-550.13,0.00013972,2]
[332756677,1721505051686,-500.0,0.00013972,2]
[332756678,1721505051695,-500.0,0.00013972,2]
[332756679,1721505051705,-500.0,0.00013972,2]
[332756680,1721505051714,-500.0,0.00013972,2]
[332756681,1721505051723,-18390.94,0.00013972,2]
[332756682,1721505051732,-500.0,0.00013972,2]
[332756683,1721505051744,-2011.6,0.00013972,2]
[332756684,1721505051755,-618.28186363,0.00013972,2]
[332756685,1721505051767,-2737.23,0.00013972,2]
[332756686,1721505051776,-400.0,0.00013972,2]
[332756687,1721505051787,-1149.23,0.00013972,2]
[332756688,1721505051799,-500.0,0.00013972,2]
[332756689,1721505051809,-734.21,0.00013972,2]
[332756690,1721505051819,-500.0,0.00013972,2]
[332756691,1721505051829,-500.0,0.00013972,2]
[332756692,1721505051838,-500.0,0.00013972,2]
[332756693,1721505051848,-500.0,0.00013972,2]
[332756694,1721505051857,-355.50504189,0.00013972,2]
[332756695,1721505051867,-520.9477985,0.00013972,2]
[332756696,1721505051877,-500.0,0.00013972,2]
[332756697,1721505051887,-500.0,0.00013972,2]
[332756698,1721505051896,-500.0,0.00013972,2]
[332756699,1721505051909,-500.0,0.00013972,2]
[332756700,1721505051920,-3008.42,0.00013972,2]
[332756701,1721505051931,-500.0,0.00013972,2]
[332756702,1721505051941,-1294.05,0.00013972,2]
[332756703,1721505051951,-500.0,0.00013972,2]
[332756704,1721505051961,-539.26,0.00013972,2]
[332756705,1721505051972,-500.0,0.00013972,2]
[332756706,1721505051982,-500.0,0.00013972,2]
[332756707,1721505051991,-1214.52,0.00013972,2]
[332756708,1721505052003,-500.0,0.00013972,2]
[332756709,1721505052014,-1089.64,0.00013972,2]
[332756710,1721505052023,-245.08411045,0.00013972,2]
[332756711,1721505052033,-500.0,0.00013972,2]
[332756712,1721505052044,-500.0,0.00013972,2]
[332756713,1721505052053,-507.42940929,0.00013972,2]
[332756714,1721505052063,-1546.82,0.00013972,2]
[332756715,1721505052073,-902.47,0.00013972,2]
[332756716,1721505052083,-500.0,0.00013972,2]
[332756717,1721505052093,-3023.06,0.00013972,2]
[332756718,1721505052103,-500.0,0.00013972,2]
[332756719,1721505052113,-529.26846187,0.00013972,2]
[332756720,1721505052123,-3110.77,0.00013972,2]
[332756721,1721505052133,-1528.42,0.00013972,2]
[332756722,1721505052142,-652.79,0.00013972,2]
[332756723,1721505052151,-542.0321779,0.00013972,2]
[332756724,1721505052161,-500.0,0.00013972,2]
[332756725,1721505052170,-985.43,0.00013972,2]
[332756726,1721505052180,-500.0,0.00013972,2]
[332756727,1721505052189,-503.98,0.00013972,2]
[332756728,1721505052198,-34870.39,0.00013972,2]
[332756729,1721505052208,-1681.8,0.00013972,2]
[332756730,1721505052218,-500.0,0.00013972,2]
[332756731,1721505052227,-500.0,0.00013972,2]
[332756732,1721505052237,-500.0,0.00013972,2]
[332756733,1721505052247,-500.0,0.00013972,2]
[332756734,1721505052257,-2275.11,0.00013972,2]
[332756735,1721505052267,-3002.39,0.00013972,2]
[332756736,1721505052276,-529.69,0.00013972,2]